[Event "Rapid della Domenica"]
[Site "Chess.com"]
[Date "2020.04.26"]
[Round "3"]
[White "MarcoCiva"]
[Black "Lavolpeneldeserto"]
[Result "1-0"]
[WhiteElo "1492"]
[BlackElo "718"]
[TimeControl "720+3"]
[EndTime "7:12:10 PDT"]
[Termination "MarcoCiva ha vinto per tempo"]

1. d4 {[%clk 0:11:59.7]} 1... d5 {[%clk 0:11:38.3]} 2. c4 {[%clk 0:11:58.7]}
2... Nf6 {[%clk 0:11:31.4]} 3. Nc3 {[%clk 0:11:42.1]} 3... e6 {[%clk 0:11:20.7]}
4. Bg5 {[%clk 0:11:42.4]} 4... c6 {[%clk 0:11:09.9]} 5. e3 {[%clk 0:11:36.4]}
5... h6 {[%clk 0:11:10]} 6. Bh4 {[%clk 0:11:37.6]} 6... g5 {[%clk 0:11:03.4]} 7.
Bg3 {[%clk 0:11:39.2]} 7... Nh5 {[%clk 0:10:09.2]} 8. Be5 {[%clk 0:11:38.8]}
8... f6 {[%clk 0:10:01.1]} 9. Qxh5+ {[%clk 0:11:37.8]} 9... Ke7 {[%clk
0:09:34.2]} 10. Bg3 {[%clk 0:11:26.4]} 10... Bg7 {[%clk 0:08:02.8]} 11. cxd5
{[%clk 0:11:19.7]} 11... cxd5 {[%clk 0:07:16.2]} 12. Bd3 {[%clk 0:10:42.2]}
12... Nc6 {[%clk 0:06:59.7]} 13. Nb5 {[%clk 0:10:20.5]} 13... a6 {[%clk
0:06:44.7]} 14. Bd6+ {[%clk 0:10:08.5]} 14... Kd7 {[%clk 0:06:13.3]} 15. Qf7+
{[%clk 0:10:01.5]} 15... Ne7 {[%clk 0:05:51.8]} 16. Bxe7 {[%clk 0:09:35.7]}
16... Qxe7 {[%clk 0:05:35.6]} 17. Qxe7+ {[%clk 0:09:37.1]} 17... Kxe7 {[%clk
0:05:36]} 18. Nc3 {[%clk 0:09:24.6]} 18... Bd7 {[%clk 0:05:32.8]} 19. e4 {[%clk
0:09:17.4]} 19... f5 {[%clk 0:05:26.2]} 20. exd5 {[%clk 0:09:12.8]} 20... Bxd4
{[%clk 0:05:11.5]} 21. Nf3 {[%clk 0:08:59.7]} 21... Bb6 {[%clk 0:04:47.4]} 22.
O-O {[%clk 0:08:59.2]} 22... g4 {[%clk 0:04:18.1]} 23. Ne5 {[%clk 0:09:00.1]}
23... Rhd8 {[%clk 0:03:26.1]} 24. Rfe1 {[%clk 0:08:03.5]} 24... Rac8 {[%clk
0:02:44.5]} 25. Ng6+ {[%clk 0:07:55.1]} 25... Kd6 {[%clk 0:02:35.1]} 26. dxe6
{[%clk 0:07:46.4]} 26... Bxe6 {[%clk 0:01:51.6]} 27. Nf4 {[%clk 0:07:44.5]}
27... Re8 {[%clk 0:01:42.1]} 28. Rad1 {[%clk 0:07:37.4]} 28... Kc7 {[%clk
0:01:32.4]} 29. Nxe6+ {[%clk 0:07:37.5]} 29... Kb8 {[%clk 0:01:08.9]} 30. Bxf5
{[%clk 0:07:33.3]} 30... Rc4 {[%clk 0:00:18.8]} 31. Nd5 {[%clk 0:06:38.1]} 1-0

[Event "Rapid della Domenica"]
[Site "Chess.com"]
[Date "2020.04.26"]
[Round "3"]
[White "GB86_CHESS"]
[Black "Carbon"]
[Result "0-1"]
[WhiteElo "1611"]
[BlackElo "1810"]
[TimeControl "720+3"]
[EndTime "7:15:17 PDT"]
[Termination "Carbon ha vinto per abbandono"]

1. c4 {[%clk 0:11:38.5]} 1... e5 {[%clk 0:11:56.4]} 2. g3 {[%clk 0:11:39.8]}
2... Nc6 {[%clk 0:11:55.2]} 3. Bg2 {[%clk 0:11:41.4]} 3... f5 {[%clk 0:11:54.5]}
4. Nc3 {[%clk 0:11:42.9]} 4... Nf6 {[%clk 0:11:55.7]} 5. d3 {[%clk 0:11:44.6]}
5... g6 {[%clk 0:11:50.9]} 6. Nf3 {[%clk 0:11:46.1]} 6... Bg7 {[%clk 0:11:50]}
7. O-O {[%clk 0:11:47.4]} 7... O-O {[%clk 0:11:50.8]} 8. a3 {[%clk 0:11:28.5]}
8... a5 {[%clk 0:11:50.5]} 9. Rb1 {[%clk 0:11:19.6]} 9... d6 {[%clk 0:11:46.3]}
10. b4 {[%clk 0:11:10.6]} 10... axb4 {[%clk 0:11:46.3]} 11. axb4 {[%clk
0:11:12]} 11... h6 {[%clk 0:11:39.2]} 12. b5 {[%clk 0:11:12.2]} 12... Ne7 {[%clk
0:11:40.8]} 13. e4 {[%clk 0:11:08.7]} 13... f4 {[%clk 0:11:31.1]} 14. Nd5 {[%clk
0:10:55.7]} 14... g5 {[%clk 0:11:13.4]} 15. Nxf6+ {[%clk 0:10:35.8]} 15... Bxf6
{[%clk 0:11:10.9]} 16. h3 {[%clk 0:10:26]} 16... Ng6 {[%clk 0:10:57.3]} 17. g4
{[%clk 0:10:24.4]} 17... Kg7 {[%clk 0:10:53]} 18. d4 {[%clk 0:10:24.2]} 18...
Rh8 {[%clk 0:10:09.2]} 19. dxe5 {[%clk 0:10:24.6]} 19... Nxe5 {[%clk 0:10:10]}
20. Nxe5 {[%clk 0:10:26]} 20... Bxe5 {[%clk 0:10:11.6]} 21. Bb2 {[%clk
0:10:27.4]} 21... Qf6 {[%clk 0:10:12.1]} 22. Bxe5 {[%clk 0:10:16.7]} 22... Qxe5
{[%clk 0:10:10.8]} 23. Qd5 {[%clk 0:10:11]} 23... Re8 {[%clk 0:09:23.4]} 24. f3
{[%clk 0:10:08.1]} 24... Ra5 {[%clk 0:07:24.5]} 25. Rfc1 {[%clk 0:09:56.8]}
25... c6 {[%clk 0:07:09.5]} 26. Qxe5+ {[%clk 0:09:50.7]} 26... Rxe5 {[%clk
0:07:08.6]} 27. bxc6 {[%clk 0:09:51.1]} 27... bxc6 {[%clk 0:07:09.2]} 28. Rb8
{[%clk 0:09:45.2]} 28... Be6 {[%clk 0:07:00]} 29. Rd8 {[%clk 0:09:12.4]} 29...
Rac5 {[%clk 0:06:31.1]} 30. Rxd6 {[%clk 0:09:07.7]} 30... Bxc4 {[%clk 0:06:32]}
31. Ra1 {[%clk 0:08:32.7]} 31... Re7 {[%clk 0:06:07.2]} 32. Rc1 {[%clk
0:07:55.2]} 32... Ree5 {[%clk 0:06:07.1]} 33. Rd7+ {[%clk 0:07:50.7]} 33... Kf6
{[%clk 0:05:47.8]} 34. Rh7 {[%clk 0:07:39.4]} 34... Kg6 {[%clk 0:05:37.4]} 35.
Rc7 {[%clk 0:07:35.4]} 35... Bb5 {[%clk 0:05:13.4]} 36. Rd1 {[%clk 0:07:32.9]}
36... Re6 {[%clk 0:04:48.8]} 37. Rd8 {[%clk 0:07:14.7]} 37... Kf6 {[%clk
0:04:37.3]} 38. Rf8+ {[%clk 0:06:19.6]} 38... Ke5 {[%clk 0:04:38.5]} 39. Rd7
{[%clk 0:06:06.1]} 39... Rc1+ {[%clk 0:04:34.7]} 40. Kh2 {[%clk 0:06:06.4]}
40... Rf6 {[%clk 0:04:19.7]} 41. Rc8 {[%clk 0:05:34.3]} 41... Rd6 {[%clk
0:03:52.5]} 42. Re8+ {[%clk 0:05:20.8]} 42... Re6 {[%clk 0:03:53.2]} 43. Rf8
{[%clk 0:05:22.5]} 43... Rd6 {[%clk 0:03:30.8]} 44. Rf5+ {[%clk 0:05:19.1]}
44... Ke6 {[%clk 0:03:29.5]} 45. Rh7 {[%clk 0:05:07.8]} 45... Rd2 {[%clk
0:03:27.1]} 46. Rxh6+ {[%clk 0:05:04]} 46... Ke7 {[%clk 0:03:27.9]} 47. Re5+
{[%clk 0:04:34.8]} 47... Kd7 {[%clk 0:03:22.2]} 48. Rxg5 {[%clk 0:04:32.2]}
48... Kc7 {[%clk 0:03:15.1]} 49. Rg7+ {[%clk 0:03:16.3]} 49... Kb6 {[%clk
0:03:13.2]} 50. h4 {[%clk 0:03:14.3]} 50... Rcc2 {[%clk 0:03:12.7]} 51. g5
{[%clk 0:03:16.3]} 51... Rxg2+ {[%clk 0:03:12.8]} 52. Kh3 {[%clk 0:03:18.7]}
52... Bf1 {[%clk 0:03:06.6]} 53. h5 {[%clk 0:03:15.2]} 53... Rg3+ {[%clk
0:03:00.7]} 0-1

[Event "Rapid della Domenica"]
[Site "Chess.com"]
[Date "2020.04.26"]
[Round "4"]
[White "markk000"]
[Black "GB86_CHESS"]
[Result "0-1"]
[WhiteElo "1521"]
[BlackElo "1679"]
[TimeControl "720+3"]
[EndTime "7:19:33 PDT"]
[Termination "GB86_CHESS ha vinto per scaccomatto"]

1. d4 {[%clk 0:12:02.1]} 1... e6 {[%clk 0:11:59.3]} 2. c4 {[%clk 0:12:03.6]}
2... b6 {[%clk 0:12:00.2]} 3. Nc3 {[%clk 0:12:05.1]} 3... Bb7 {[%clk 0:12:00.2]}
4. Nf3 {[%clk 0:12:06.4]} 4... Nf6 {[%clk 0:12:01.9]} 5. Bg5 {[%clk 0:12:07.5]}
5... h6 {[%clk 0:12:01.4]} 6. Bh4 {[%clk 0:12:08.8]} 6... g5 {[%clk 0:12:03.1]}
7. Bg3 {[%clk 0:12:08.4]} 7... Bb4 {[%clk 0:12:04.8]} 8. e3 {[%clk 0:11:49.8]}
8... Ne4 {[%clk 0:12:03.2]} 9. Rc1 {[%clk 0:11:41.4]} 9... f5 {[%clk 0:12:02]}
10. Be5 {[%clk 0:11:39.4]} 10... Rg8 {[%clk 0:11:59.5]} 11. d5 {[%clk
0:11:26.7]} 11... d6 {[%clk 0:11:56]} 12. Bd4 {[%clk 0:11:14.6]} 12... e5 {[%clk
0:11:56.9]} 13. Bxe5 {[%clk 0:11:14.6]} 13... dxe5 {[%clk 0:11:58.6]} 14. Nxe5
{[%clk 0:11:15.1]} 14... Qd6 {[%clk 0:11:59.9]} 15. Nf3 {[%clk 0:11:03.6]} 15...
Nd7 {[%clk 0:12:00.2]} 16. Bd3 {[%clk 0:11:03.3]} 16... O-O-O {[%clk 0:11:56.1]}
17. Bxe4 {[%clk 0:10:57.5]} 17... fxe4 {[%clk 0:11:57.9]} 18. Nd4 {[%clk
0:10:59.1]} 18... Nc5 {[%clk 0:11:47.6]} 19. Nb5 {[%clk 0:10:52.8]} 19... Qf6
{[%clk 0:11:45.9]} 20. Nxa7+ {[%clk 0:10:43.3]} 20... Kb8 {[%clk 0:11:47.4]} 21.
Nb5 {[%clk 0:10:45.2]} 21... Nd3+ {[%clk 0:11:49.4]} 22. Ke2 {[%clk 0:10:41.5]}
22... Qxf2# {[%clk 0:11:50.5]} 0-1

[Event "Rapid della Domenica"]
[Site "Chess.com"]
[Date "2020.04.26"]
[Round "4"]
[White "ottovolante"]
[Black "SanSecondoPR"]
[Result "0-1"]
[WhiteElo "999"]
[BlackElo "1248"]
[TimeControl "720+3"]
[EndTime "7:26:25 PDT"]
[Termination "SanSecondoPR ha vinto per abbandono"]

1. e4 {[%clk 0:12:02.9]} 1... e5 {[%clk 0:11:59.2]} 2. Nc3 {[%clk 0:12:01.1]}
2... Nf6 {[%clk 0:11:57.5]} 3. Nf3 {[%clk 0:12:01.5]} 3... Nc6 {[%clk
0:11:57.2]} 4. Bb5 {[%clk 0:12:02]} 4... Bd6 {[%clk 0:11:55.5]} 5. Bxc6 {[%clk
0:12:02.5]} 5... dxc6 {[%clk 0:11:56.3]} 6. a3 {[%clk 0:11:47.9]} 6... O-O
{[%clk 0:11:57.2]} 7. d3 {[%clk 0:11:37.8]} 7... Bg4 {[%clk 0:11:57.4]} 8. Be3
{[%clk 0:11:38.2]} 8... b6 {[%clk 0:11:52.6]} 9. h3 {[%clk 0:11:35.9]} 9... Bd7
{[%clk 0:11:45.1]} 10. Bg5 {[%clk 0:11:32.5]} 10... h6 {[%clk 0:11:42.1]} 11.
Bxf6 {[%clk 0:11:32.9]} 11... Qxf6 {[%clk 0:11:41.9]} 12. Ne2 {[%clk 0:11:32.1]}
12... Qg6 {[%clk 0:11:26.1]} 13. Nh4 {[%clk 0:11:31.6]} 13... Qg5 {[%clk
0:11:22.4]} 14. g3 {[%clk 0:11:16.6]} 14... Bc5 {[%clk 0:11:06.2]} 15. Nf3
{[%clk 0:11:00.5]} 15... Qf6 {[%clk 0:11:02.1]} 16. Neg1 {[%clk 0:10:49.5]}
16... Rad8 {[%clk 0:10:22.1]} 17. Qe2 {[%clk 0:10:50.5]} 17... Qe6 {[%clk
0:10:14.2]} 18. c3 {[%clk 0:10:21.4]} 18... Be8 {[%clk 0:10:07.5]} 19. Qd2
{[%clk 0:10:13.2]} 19... f5 {[%clk 0:09:54.2]} 20. b4 {[%clk 0:09:50.2]} 20...
fxe4 {[%clk 0:09:35.7]} 21. bxc5 {[%clk 0:09:49]} 21... exf3 {[%clk 0:09:33.1]}
22. g4 {[%clk 0:09:43.2]} 22... Bg6 {[%clk 0:09:30.8]} 23. Qb2 {[%clk 0:09:23]}
23... Rxd3 {[%clk 0:09:17.5]} 24. Rd1 {[%clk 0:09:23.7]} 24... e4 {[%clk
0:09:14.8]} 25. cxb6 {[%clk 0:09:08.5]} 25... axb6 {[%clk 0:09:13.7]} 26. Rd2
{[%clk 0:08:57.2]} 26... e3 {[%clk 0:09:10.4]} 27. Rxd3 {[%clk 0:08:57.9]} 27...
Bxd3 {[%clk 0:09:01.7]} 28. Rh2 {[%clk 0:08:52.6]} 28... Qe5 {[%clk 0:08:29.1]}
29. Nxf3 {[%clk 0:08:36.8]} 29... exf2+ {[%clk 0:08:20.2]} 30. Kxf2 {[%clk
0:08:24.6]} 30... Qxh2+ {[%clk 0:08:17.3]} 31. Ke3 {[%clk 0:08:23.3]} 31... Qxb2
{[%clk 0:08:15.1]} 0-1

[Event "Rapid della Domenica"]
[Site "Chess.com"]
[Date "2020.04.26"]
[Round "4"]
[White "crippo"]
[Black "donaldnecesito"]
[Result "0-1"]
[WhiteElo "1505"]
[BlackElo "1666"]
[TimeControl "720+3"]
[EndTime "7:29:32 PDT"]
[Termination "donaldnecesito ha vinto per abbandono"]

1. e4 {[%clk 0:12:02.9]} 1... c5 {[%clk 0:12:00.9]} 2. Nc3 {[%clk 0:12:04.1]}
2... g6 {[%clk 0:12:00.3]} 3. Nf3 {[%clk 0:12:04.7]} 3... Bg7 {[%clk 0:12:02.4]}
4. Bc4 {[%clk 0:12:06]} 4... e6 {[%clk 0:12:00.6]} 5. d3 {[%clk 0:12:08]} 5...
Ne7 {[%clk 0:12:00.1]} 6. h4 {[%clk 0:12:09.2]} 6... Nbc6 {[%clk 0:12:00]} 7. h5
{[%clk 0:12:10.8]} 7... a6 {[%clk 0:12:01.3]} 8. hxg6 {[%clk 0:12:12.7]} 8...
fxg6 {[%clk 0:12:01.9]} 9. a4 {[%clk 0:12:14.3]} 9... d5 {[%clk 0:11:57.1]} 10.
exd5 {[%clk 0:12:10.6]} 10... exd5 {[%clk 0:11:59]} 11. Ba2 {[%clk 0:12:12.4]}
11... Bg4 {[%clk 0:11:58.7]} 12. Bh6 {[%clk 0:12:10.2]} 12... O-O {[%clk
0:11:48.2]} 13. Bxg7 {[%clk 0:12:10.7]} 13... Kxg7 {[%clk 0:11:48]} 14. Qd2
{[%clk 0:12:09.2]} 14... h5 {[%clk 0:11:31.7]} 15. O-O-O {[%clk 0:11:59.3]}
15... Nd4 {[%clk 0:11:26.2]} 16. Qe3 {[%clk 0:11:41.3]} 16... Nxf3 {[%clk
0:10:48.9]} 17. gxf3 {[%clk 0:11:28.2]} 17... Bxf3 {[%clk 0:10:50.5]} 18. Qe5+
{[%clk 0:11:29.4]} 18... Kh7 {[%clk 0:10:47.8]} 19. Rh3 {[%clk 0:11:19.5]} 19...
Bxd1 {[%clk 0:10:47.1]} 20. Nxd1 {[%clk 0:11:20]} 20... Nf5 {[%clk 0:10:29.5]}
21. Bxd5 {[%clk 0:11:15.8]} 21... Re8 {[%clk 0:10:23.9]} 22. Rxh5+ {[%clk
0:11:09.4]} 22... gxh5 {[%clk 0:10:08.3]} 23. Qxf5+ {[%clk 0:11:10.2]} 23... Kh6
{[%clk 0:09:49.4]} 24. Kb1 {[%clk 0:10:34.9]} 24... Qg5 {[%clk 0:09:42.7]} 25.
Qf3 {[%clk 0:10:20.4]} 25... Rf8 {[%clk 0:09:30.1]} 26. Qh1 {[%clk 0:10:05.4]}
26... Rae8 {[%clk 0:08:53.8]} 27. Ne3 {[%clk 0:10:02.5]} 27... Rxf2 {[%clk
0:08:40.4]} 28. Nc4 {[%clk 0:09:12.2]} 28... b5 {[%clk 0:08:24.4]} 29. Nd6
{[%clk 0:09:06.8]} 29... Ref8 {[%clk 0:08:07.9]} 30. Ka2 {[%clk 0:08:59.6]}
30... bxa4 {[%clk 0:07:45]} 31. Bc4 {[%clk 0:07:22]} 31... Rxc2 {[%clk
0:07:25.1]} 32. Nf7+ {[%clk 0:07:21.3]} 32... Rxf7 {[%clk 0:07:23.5]} 33. Bxf7
{[%clk 0:07:22.4]} 33... Qf6 {[%clk 0:07:18.3]} 34. Qxh5+ {[%clk 0:07:10]} 34...
Kg7 {[%clk 0:07:19.9]} 35. d4 {[%clk 0:06:47]} 35... Qxf7+ {[%clk 0:07:20.5]}
36. Kb1 {[%clk 0:06:46.4]} 36... Qxh5 {[%clk 0:07:18.7]} 0-1

[Event "Rapid della Domenica"]
[Site "Chess.com"]
[Date "2020.04.26"]
[Round "4"]
[White "sergiodone"]
[Black "caramante"]
[Result "1-0"]
[WhiteElo "1533"]
[BlackElo "1541"]
[TimeControl "720+3"]
[EndTime "7:29:51 PDT"]
[Termination "sergiodone ha vinto per abbandono"]

1. e4 {[%clk 0:11:55.8]} 1... c5 {[%clk 0:12:00.7]} 2. Nf3 {[%clk 0:11:54.5]}
2... d6 {[%clk 0:12:02.4]} 3. c3 {[%clk 0:11:56.2]} 3... e6 {[%clk 0:12:02.5]}
4. d4 {[%clk 0:11:57.7]} 4... Nd7 {[%clk 0:12:03.7]} 5. Bd3 {[%clk 0:11:54.7]}
5... Ngf6 {[%clk 0:12:04.3]} 6. h3 {[%clk 0:11:55.3]} 6... Be7 {[%clk
0:12:05.7]} 7. Qe2 {[%clk 0:11:55.8]} 7... Qc7 {[%clk 0:12:05.3]} 8. Be3 {[%clk
0:11:54.2]} 8... a6 {[%clk 0:12:06.1]} 9. b3 {[%clk 0:11:33.7]} 9... b5 {[%clk
0:12:03.2]} 10. c4 {[%clk 0:10:53.1]} 10... b4 {[%clk 0:11:54]} 11. d5 {[%clk
0:10:54.4]} 11... exd5 {[%clk 0:11:49]} 12. exd5 {[%clk 0:10:53.9]} 12... O-O
{[%clk 0:11:50.5]} 13. O-O {[%clk 0:10:53.4]} 13... Re8 {[%clk 0:11:51.4]} 14.
Qc2 {[%clk 0:10:53.1]} 14... g6 {[%clk 0:11:52]} 15. Bh6 {[%clk 0:10:52.9]}
15... Bf8 {[%clk 0:11:50.5]} 16. Bxf8 {[%clk 0:10:53.3]} 16... Kxf8 {[%clk
0:11:51.5]} 17. Nbd2 {[%clk 0:10:54.5]} 17... Ne5 {[%clk 0:11:47.4]} 18. Nxe5
{[%clk 0:10:50.7]} 18... Rxe5 {[%clk 0:11:47.1]} 19. Rae1 {[%clk 0:10:43.3]}
19... Qe7 {[%clk 0:11:43.8]} 20. Nf3 {[%clk 0:10:40.7]} 20... Rxe1 {[%clk
0:11:40.7]} 21. Rxe1 {[%clk 0:10:41.6]} 21... Qd8 {[%clk 0:11:34.9]} 22. Qd2
{[%clk 0:10:42.3]} 22... Kg7 {[%clk 0:11:35.7]} 23. Qf4 {[%clk 0:10:38.5]} 23...
Ra7 {[%clk 0:11:33.6]} 24. Qg5 {[%clk 0:10:14.3]} 24... Re7 {[%clk 0:11:28.3]}
25. Re3 {[%clk 0:09:53.5]} 25... Rxe3 {[%clk 0:10:56.6]} 26. fxe3 {[%clk
0:09:54.4]} 26... Qe8 {[%clk 0:10:49]} 27. Kf2 {[%clk 0:09:52.3]} 27... h6
{[%clk 0:10:48.3]} 28. Qh4 {[%clk 0:09:47.5]} 28... Bd7 {[%clk 0:10:36.6]} 29.
g4 {[%clk 0:09:40.6]} 29... Ne4+ {[%clk 0:10:23.7]} 30. Bxe4 {[%clk 0:09:33.3]}
30... Qxe4 {[%clk 0:10:23.9]} 31. Qd8 {[%clk 0:09:05.8]} 31... Bxg4 {[%clk
0:09:38.5]} 32. hxg4 {[%clk 0:08:57.3]} 32... Qxg4 {[%clk 0:09:39.9]} 33. Qxd6
{[%clk 0:08:56.7]} 33... h5 {[%clk 0:09:38.7]} 34. Qe5+ {[%clk 0:08:53]} 34...
Kh6 {[%clk 0:09:33.3]} 35. Qf4+ {[%clk 0:08:29.8]} 35... Qxf4 {[%clk 0:09:30.8]}
36. exf4 {[%clk 0:08:30.3]} 36... Kg7 {[%clk 0:09:29.6]} 37. d6 {[%clk
0:08:32.1]} 37... Kf6 {[%clk 0:09:31.6]} 38. Ne5 {[%clk 0:08:30.1]} 38... Ke6
{[%clk 0:09:30.5]} 39. d7 {[%clk 0:08:20.2]} 39... Ke7 {[%clk 0:09:31.4]} 40.
Kg3 {[%clk 0:08:14.8]} 40... f6 {[%clk 0:09:28]} 41. Nxg6+ {[%clk 0:08:15.4]}
41... Kxd7 {[%clk 0:09:30]} 42. f5 {[%clk 0:08:15.2]} 42... Ke8 {[%clk
0:09:22.2]} 43. Kf4 {[%clk 0:08:16.6]} 43... Kf7 {[%clk 0:09:23.9]} 44. Nh4
{[%clk 0:08:17.7]} 44... Kg7 {[%clk 0:09:23.6]} 45. Ng6 {[%clk 0:07:58.7]} 45...
Kh6 {[%clk 0:09:22.3]} 46. Ne7 {[%clk 0:07:46.4]} 46... h4 {[%clk 0:09:02.7]}
47. Kg4 {[%clk 0:07:47.5]} 47... h3 {[%clk 0:09:03.6]} 48. Kxh3 {[%clk
0:07:48.7]} 48... Kg5 {[%clk 0:09:05.4]} 49. Kg3 {[%clk 0:07:49.6]} 49... a5
{[%clk 0:09:00.8]} 50. Kf3 {[%clk 0:07:49.8]} 50... Kh5 {[%clk 0:08:59.1]} 51.
Ke4 {[%clk 0:07:50.8]} 51... Kh4 {[%clk 0:09:00.5]} 52. Nd5 {[%clk 0:07:49.1]}
52... Kg5 {[%clk 0:09:01.7]} 53. Ne7 {[%clk 0:07:43.1]} 53... Kg4 {[%clk
0:09:01.2]} 54. Nd5 {[%clk 0:07:33.8]} 54... Kg5 {[%clk 0:09:01.1]} 55. Ne7
{[%clk 0:07:25]} 55... Kg4 {[%clk 0:09:01.8]} 56. Nc6 {[%clk 0:07:22.3]} 56...
Kg5 {[%clk 0:08:58.9]} 57. Nxa5 {[%clk 0:07:22.6]} 57... Kg4 {[%clk 0:08:58.5]}
58. Nc6 {[%clk 0:07:23.9]} 58... Kg5 {[%clk 0:08:59]} 59. Nxb4 {[%clk
0:07:25.4]} 59... cxb4 {[%clk 0:08:59.7]} 60. c5 {[%clk 0:07:27.2]} 1-0

[Event "Rapid della Domenica"]
[Site "Chess.com"]
[Date "2020.04.26"]
[Round "4"]
[White "bellapero"]
[Black "sirmale49"]
[Result "0-1"]
[WhiteElo "1356"]
[BlackElo "1415"]
[TimeControl "720+3"]
[EndTime "7:31:52 PDT"]
[Termination "sirmale49 ha vinto per scaccomatto"]

1. e4 {[%clk 0:12:00.9]} 1... d5 {[%clk 0:11:58]} 2. exd5 {[%clk 0:12:00.2]}
2... Qxd5 {[%clk 0:11:59.7]} 3. Nc3 {[%clk 0:12:00.7]} 3... Qd6 {[%clk 0:12:01]}
4. d4 {[%clk 0:11:37.8]} 4... c6 {[%clk 0:12:01.9]} 5. Nf3 {[%clk 0:11:38.8]}
5... Nf6 {[%clk 0:12:02.9]} 6. Be2 {[%clk 0:11:28]} 6... Bg4 {[%clk 0:12:03.1]}
7. O-O {[%clk 0:11:05.8]} 7... e6 {[%clk 0:11:58.5]} 8. h3 {[%clk 0:10:47.4]}
8... Bf5 {[%clk 0:11:59.2]} 9. Bg5 {[%clk 0:10:36.7]} 9... Be7 {[%clk
0:11:47.8]} 10. Re1 {[%clk 0:09:37.8]} 10... h6 {[%clk 0:11:47.4]} 11. Bxf6
{[%clk 0:09:31.1]} 11... Bxf6 {[%clk 0:11:47.6]} 12. Ne5 {[%clk 0:09:08.9]}
12... Bxe5 {[%clk 0:11:41.5]} 13. dxe5 {[%clk 0:09:06.6]} 13... Qxd1 {[%clk
0:11:41.4]} 14. Raxd1 {[%clk 0:09:05.9]} 14... Bxc2 {[%clk 0:11:40]} 15. Rc1
{[%clk 0:09:03.6]} 15... Bg6 {[%clk 0:11:27.3]} 16. Nd1 {[%clk 0:08:31.5]} 16...
Nd7 {[%clk 0:11:20.7]} 17. f4 {[%clk 0:08:18.1]} 17... O-O-O {[%clk 0:11:16]}
18. Nf2 {[%clk 0:07:52.3]} 18... h5 {[%clk 0:11:11]} 19. h4 {[%clk 0:07:39.3]}
19... Nb6 {[%clk 0:11:06.9]} 20. Rc3 {[%clk 0:07:16.6]} 20... Nd5 {[%clk
0:11:04.1]} 21. Ra3 {[%clk 0:07:07.7]} 21... Kb8 {[%clk 0:10:59.4]} 22. g3
{[%clk 0:07:06.7]} 22... Nb4 {[%clk 0:10:39.4]} 23. Ra4 {[%clk 0:06:08.1]} 23...
Nc2 {[%clk 0:10:25.6]} 24. Rc1 {[%clk 0:06:04.6]} 24... Rd2 {[%clk 0:10:06.9]}
25. Bc4 {[%clk 0:05:44]} 25... Ne3 {[%clk 0:09:55.3]} 26. Bb3 {[%clk 0:05:13.5]}
26... Rhd8 {[%clk 0:09:43.7]} 27. Kh2 {[%clk 0:04:43.3]} 27... Rxf2+ {[%clk
0:09:39.4]} 28. Kh3 {[%clk 0:04:36.4]} 28... Bf5+ {[%clk 0:09:35.6]} 29. g4
{[%clk 0:04:33.3]} 29... Bxg4+ {[%clk 0:09:34.4]} 30. Kg3 {[%clk 0:04:32.2]}
30... Rf3+ {[%clk 0:09:33.8]} 31. Kh2 {[%clk 0:04:30]} 31... Rh3+ {[%clk
0:09:32.5]} 32. Kg1 {[%clk 0:04:26.8]} 32... Rg3+ {[%clk 0:09:28.8]} 33. Kf2
{[%clk 0:04:22.1]} 33... Rf3+ {[%clk 0:09:27.9]} 34. Ke2 {[%clk 0:04:19.9]}
34... Rh3+ {[%clk 0:09:18.9]} 35. Kf2 {[%clk 0:04:20.1]} 35... Rd2+ {[%clk
0:09:16.3]} 36. Ke1 {[%clk 0:04:15.2]} 36... Rhh2 {[%clk 0:09:03.6]} 37. Re4
{[%clk 0:03:20.4]} 37... Rhe2# {[%clk 0:08:48.3]} 0-1

[Event "Rapid della Domenica"]
[Site "Chess.com"]
[Date "2020.04.26"]
[Round "4"]
[White "toninoiuorio"]
[Black "MarcoCiva"]
[Result "1-0"]
[WhiteElo "1619"]
[BlackElo "1465"]
[TimeControl "720+3"]
[EndTime "7:35:06 PDT"]
[Termination "toninoiuorio ha vinto per scaccomatto"]

1. d4 {[%clk 0:12:02.9]} 1... Nf6 {[%clk 0:11:30.6]} 2. c4 {[%clk 0:11:59.2]}
2... e6 {[%clk 0:11:30.9]} 3. Nc3 {[%clk 0:11:57.8]} 3... d5 {[%clk 0:11:28.7]}
4. cxd5 {[%clk 0:11:58.8]} 4... Nxd5 {[%clk 0:11:20]} 5. e4 {[%clk 0:11:58.9]}
5... Nxc3 {[%clk 0:11:20.3]} 6. bxc3 {[%clk 0:12:01.3]} 6... c5 {[%clk
0:11:09.1]} 7. Nf3 {[%clk 0:11:59]} 7... cxd4 {[%clk 0:10:37.8]} 8. cxd4 {[%clk
0:12:00.3]} 8... Bb4+ {[%clk 0:10:37.2]} 9. Bd2 {[%clk 0:12:01.3]} 9... Bxd2+
{[%clk 0:10:37.4]} 10. Qxd2 {[%clk 0:12:03.4]} 10... O-O {[%clk 0:10:38.7]} 11.
Be2 {[%clk 0:12:03.5]} 11... Nc6 {[%clk 0:10:38.9]} 12. O-O {[%clk 0:12:02.6]}
12... a5 {[%clk 0:10:33.6]} 13. Rfd1 {[%clk 0:12:03.3]} 13... b6 {[%clk
0:10:30.9]} 14. Rac1 {[%clk 0:11:44.9]} 14... Bb7 {[%clk 0:09:59.4]} 15. Bb5
{[%clk 0:11:11.7]} 15... Nb4 {[%clk 0:09:32.1]} 16. Qe2 {[%clk 0:10:52.3]} 16...
Rc8 {[%clk 0:08:25.5]} 17. a3 {[%clk 0:10:48.5]} 17... Nc6 {[%clk 0:07:41.2]}
18. d5 {[%clk 0:10:19.1]} 18... exd5 {[%clk 0:07:05.6]} 19. exd5 {[%clk
0:10:20.6]} 19... Na7 {[%clk 0:06:54.1]} 20. Ba6 {[%clk 0:09:58.7]} 20... Rxc1
{[%clk 0:06:45.6]} 21. Rxc1 {[%clk 0:10:00.5]} 21... Qxd5 {[%clk 0:06:44.2]} 22.
Rd1 {[%clk 0:09:57.6]} 22... Qc6 {[%clk 0:06:23]} 23. Bc4 {[%clk 0:09:00.4]}
23... b5 {[%clk 0:05:46.8]} 24. Bd5 {[%clk 0:08:57.1]} 24... Qc8 {[%clk
0:05:32.4]} 25. Ba2 {[%clk 0:08:07.7]} 25... b4 {[%clk 0:04:54.7]} 26. axb4
{[%clk 0:08:07.3]} 26... axb4 {[%clk 0:04:56.3]} 27. Qe3 {[%clk 0:08:06.4]}
27... Qa8 {[%clk 0:04:40.9]} 28. Ne5 {[%clk 0:07:27.7]} 28... Bxg2 {[%clk
0:04:10.2]} 29. Nxf7 {[%clk 0:07:12]} 29... Nb5 {[%clk 0:03:04]} 30. Qb3 {[%clk
0:05:50.3]} 30... Bh1 {[%clk 0:02:18.3]} 31. Nh6+ {[%clk 0:05:47.9]} 31... Kh8
{[%clk 0:02:16.1]} 32. Qg8+ {[%clk 0:05:48.1]} 32... Rxg8 {[%clk 0:02:15.8]} 33.
Nf7# {[%clk 0:05:49.9]} 1-0